bitfinex/quotes_ETHUSD_20240731
["timestamp","ask_amount","ask_price","bid_price","bid_amount"]
[1722442277368,3.01359,3318.3,3317.6,0.06027776]
[1722442277614,0.1315647,3318.2,3317.7,3.01413]
[1722442277794,3.01359,3318.3,3317.7,3.01413]
[1722442277991,0.13157064,3318.2,3317.8,0.07641715]
[1722442278195,3.01359,3318.3,3317.8,0.07641715]
[1722442278405,0.13157204,3318.2,3317.7,3.01406]
[1722442278602,0.13157204,3318.2,3317.9,3.01395]
[1722442278919,3.01345,3318.5,3317.9,3.01395]
[1722442279119,3.01345,3318.5,3318.0,0.0763545]
[1722442279317,0.13157236,3318.4,3318.0,0.0763545]
[1722442279535,0.13156651,3318.3,3318.0,3.01384]
[1722442279726,3.01345,3318.5,3318.1,0.07632317]
[1722442279897,3.14507871,3318.4,3317.9,3.01395]
[1722442280096,0.13156871,3318.3,3317.9,0.60883045]
[1722442280328,2.3252,3318.7,3318.3,3.01357]
[1722442280528,2.3252,3318.7,3318.2,3.01365]
[1722442280678,3.01318,3318.8,3318.4,0.07606583]
[1722442280879,3.01318,3318.8,3318.1,3.0137]
[1722442280880,3.14483118,3318.7,3318.1,3.0137]
[1722442281079,3.01328,3318.7,3318.2,0.07612847]
[1722442281511,9.0449,3319.0,3318.2,0.07612847]
[1722442281713,3.01356,3318.4,3317.8,3.01399]
[1722442281926,3.01373,3318.2,3317.9,0.07616009]
[1722442282221,3.01401,3317.9,3317.3,3.01444]
[1722442282390,3.01401,3317.9,3317.2,3.01454]
[1722442282391,3.01409,3317.8,3317.2,3.01454]
[1722442282603,3.01394,3318.0,3317.2,3.01453]
[1722442282931,2.71147,3317.6,3317.2,0.301453]
[1722442283224,2.71147,3317.6,3317.0,3.01475]
[1722442283403,2.71147,3317.6,3317.0,3.01472]
[1722442283633,3.01414,3317.7,3317.1,3.01462]
[1722442283783,3.01414,3317.7,3317.0,3.01475]
[1722442283983,3.01414,3317.7,3316.3,3.01539]
[1722442283984,3.01441,3317.4,3316.6,3.01507]
[1722442284190,3.01441,3317.4,3316.5,2.4702]
[1722442284191,3.01441,3317.4,3316.8,3.01489]
[1722442284494,0.551164,3317.7,3317.0,3.01476]
[1722442284755,3.01425,3317.6,3317.1,3.01462]
[1722442284970,3.14583882,3317.6,3317.1,3.01462]
[1722442285176,0.13158882,3317.6,3317.3,3.01442]
[1722442285846,0.13158882,3317.6,3317.4,0.07364958]
[1722442286191,0.13158882,3317.6,3317.4,3.08804958]
[1722442286761,0.13158882,3317.6,3317.5,3.01431]
[1722442286964,0.13158882,3317.6,3317.5,3.630573]
[1722442287176,0.13158882,3317.6,3317.5,3.70419124]
[1722442287373,0.13158882,3317.6,3317.5,6.71850124]
[1722442290097,0.13158882,3317.6,3317.5,10.28281124]
[1722442291781,0.13158882,3317.6,3317.5,13.28281124]
[1722442291954,6.5592,3318.8,3318.4,3.01349]
[1722442292283,0.2733752,3318.7,3318.4,3.01349]
[1722442292468,0.27336671,3318.6,3318.5,0.07330498]
[1722442292668,3.01314,3318.8,3318.5,0.07330498]
[1722442292888,0.27336555,3318.7,3318.3,3.01358]
[1722442293082,3.01314,3318.8,3318.6,0.07327366]
[1722442293290,0.27338085,3318.7,3318.3,3.01358]
[1722442293460,0.27338085,3318.6,3318.3,3.01358]
[1722442293807,3.01314,3318.8,3318.4,0.07333629]
[1722442294109,3.28659496,3318.7,3318.4,0.07333629]
[1722442294252,0.27335496,3318.6,3318.4,0.07333629]
[1722442294457,0.27335496,3318.6,3318.1,3.0137]
[1722442294656,3.01324,3318.7,3318.5,0.07330498]
[1722442294657,6.02654,3318.7,3318.5,0.07330498]
[1722442294867,3.846134,3318.7,3317.9,3.01387]
[1722442295100,6.02652,3318.7,3318.6,0.07327366]
[1722442295399,3.01338,3318.6,3318.0,3.01384]
[1722442295601,0.27345663,3318.5,3318.0,3.01384]
[1722442295759,3.01338,3318.6,3318.1,0.07339762]
[1722442296096,0.27341639,3318.5,3318.1,0.07339762]
[1722442296295,3.01333,3318.6,3318.1,0.07339762]
[1722442296481,3.01333,3318.6,3318.0,3.01381]
[1722442296658,3.01356,3318.4,3318.2,0.0733663]
[1722442296858,3.01356,3318.4,3317.8,3.014]
[1722442296859,3.01359,3318.3,3318.1,0.07339762]
[1722442297095,3.01359,3318.3,3317.8,3.01402]
[1722442297313,6.02691,3318.5,3317.8,3.01398]
[1722442297617,3.01369,3318.2,3317.6,3.01414]
[1722442297782,3.01369,3318.2,3317.5,0.616263]
[1722442297783,3.01345,3318.5,3317.8,3.01397]
[1722442298117,0.27350838,3318.4,3317.9,3.01394]
[1722442299577,0.27340651,3318.5,3318.0,3.01383]
[1722442299983,0.27340651,3318.5,3317.9,3.35155003]
[1722442300189,0.27340651,3318.5,3318.1,3.08716841]
[1722442300429,0.27340651,3318.5,3318.1,3.01375]
[1722442300615,0.27340651,3318.5,3318.2,0.07338709]
[1722442301403,0.24500985,3318.4,3318.2,0.07338709]
[1722442301603,0.49002008,3318.4,3318.2,0.07338709]
[1722442301794,3.01332,3318.6,3318.2,0.07338709]
[1722442301994,0.24501596,3318.5,3318.2,0.07338709]
[1722442302329,0.24501596,3318.4,3318.2,0.07338709]
[1722442302529,3.01328,3318.7,3318.2,0.07338709]
[1722442302701,0.24498747,3318.6,3318.2,0.07338709]
[1722442302906,0.24498747,3318.5,3318.2,0.07338709]
[1722442303107,0.24498747,3318.4,3318.2,0.07338709]
[1722442303462,0.24499768,3318.3,3318.2,0.07338709]
[1722442303658,0.24499768,3318.3,3317.5,3.630543]
[1722442303659,2.1457,3316.6,3315.0,3.01656]
[1722442303937,2.1457,3316.6,3315.6,3.01596]
[1722442303938,1.89422097,3316.0,3315.6,3.01596]
[1722442304121,1.89422097,3315.9,3315.2,1.115]
[1722442304435,1.8941343,3315.8,3315.2,3.01639]
[1722442304750,1.8941343,3315.8,3314.4,2.3951]
[1722442304751,1.8941343,3315.7,3315.3,3.317889]
[1722442305048,2.20891413,3316.0,3315.3,3.317889]
[1722442305049,1.8941343,3315.6,3315.3,3.317889]
[1722442305205,1.8941343,3315.6,3315.3,0.301639]
[1722442305407,1.8941343,3315.6,3314.9,3.01667]
[1722442305606,1.8941343,3315.5,3314.9,3.01667]
[1722442306403,4.9101943,3315.6,3315.0,3.0]
[1722442306750,3.01606,3315.6,3315.0,3.0]
[1722442306928,4.9101943,3315.6,3315.0,3.0]
[1722442307127,1.8941343,3315.5,3315.1,0.601667]
[1722442307536,3.01547,3316.3,3315.1,0.601667]
[1722442307537,1.04494836,3315.4,3315.1,0.601667]
[1722442307727,4.90717928,3315.7,3315.1,0.601667]
[1722442307902,1.04494526,3315.6,3315.1,0.601667]
[1722442308112,1.57510649,3315.4,3315.2,0.6618197]
[1722442308607,4.59115649,3315.6,3315.2,0.6618197]
[1722442309231,1.04492979,3315.5,3315.2,0.6618197]
[1722442309432,1.57510649,3315.7,3315.3,0.05067398]
[1722442309640,4.59112649,3315.7,3315.3,0.05067398]
[1722442309845,4.59112649,3315.7,3315.2,0.6618197]
[1722442310056,1.57510649,3315.6,3315.4,0.05064261]
[1722442310254,1.57510649,3315.6,3315.3,0.05067398]
[1722442310461,4.59112649,3315.7,3315.5,0.05061123]
[1722442310631,4.59112649,3315.7,3315.4,0.05064261]
[1722442310832,4.58890037,3315.7,3315.6,0.05057986]
[1722442311166,3.01602,3315.7,3315.2,0.6618197]
[1722442311538,3.01602,3315.7,3315.3,0.05067398]
[1722442311732,3.01602,3315.7,3315.2,0.6618197]
[1722442311963,3.01602,3315.7,3315.3,0.05067398]
[1722442312464,2.71322,3315.7,3315.2,0.6618197]
[1722442312763,4.58866037,3315.9,3315.3,0.10928236]
[1722442313077,1.57288037,3316.0,3315.3,3.06521623]
[1722442313221,1.04492519,3315.9,3315.4,3.32274162]
[1722442313552,4.58856037,3316.0,3315.5,0.04889348]
[1722442313949,3.01568,3316.0,3315.5,0.04889348]
[1722442314137,4.58656985,3316.0,3315.5,0.04889348]
[1722442314344,3.01568,3316.0,3315.4,3.32274162]
[1722442315432,3.01562,3316.1,3315.4,3.32274162]
[1722442315630,1.57088985,3316.2,3315.5,0.38128174]
[1722442315834,6.5592,3316.3,3316.0,3.01566]
[1722442316083,4.58583985,3316.8,3316.0,3.01566]
[1722442316249,3.01495,3316.8,3316.1,3.06431937]
[1722442316443,3.01495,3316.8,3316.1,0.04881937]
[1722442317250,3.01514,3316.6,3316.1,0.04881937]
[1722442319035,3.01514,3316.6,3316.1,3.06439937]
[1722442320039,3.01496,3316.8,3316.2,3.01549]
[1722442320474,1.04467914,3316.7,3316.3,0.04875665]
[1722442320778,3.01505,3316.7,3316.2,3.01549]
[1722442321165,3.01505,3316.7,3316.3,0.04875665]
[1722442321485,3.01514,3316.6,3316.3,0.04875665]
[1722442321855,3.01514,3316.6,3316.0,3.01564]
[1722442322190,3.01514,3316.6,3316.0,3.618787]
[1722442322485,3.01514,3316.6,3316.1,0.04881937]
[1722442322685,8.12938525,3316.9,3316.1,0.04881937]
[1722442322854,1.04469105,3316.8,3316.4,3.01524]
[1722442323056,3.0148,3317.0,3316.4,3.01524]
[1722442323380,1.0446321,3316.9,3316.4,3.01524]
[1722442323785,1.0446321,3316.8,3316.5,0.04869394]
[1722442324083,4.58473298,3317.1,3316.5,3.06391394]
[1722442324296,1.04462138,3317.0,3316.5,3.06391394]
[1722442324436,1.04462138,3316.9,3316.5,0.60791539]
[1722442324642,6.5592,3317.3,3316.8,3.01495]
[1722442324882,1.04451161,3317.2,3316.8,3.01495]
[1722442325087,6.5592,3317.3,3316.9,0.04873131]
[1722442325252,1.04450197,3317.2,3316.9,0.04873131]
[1722442325458,1.04450197,3317.1,3316.9,0.04873131]
[1722442325657,6.5592,3317.3,3316.9,0.04873131]
[1722442325869,1.04448839,3317.2,3316.9,0.04873131]
[1722442326041,1.04448839,3317.1,3316.9,0.04873131]
[1722442326243,9.5737,3317.3,3316.9,0.04873131]
[1722442326443,4.05914591,3317.2,3316.6,3.01511]
[1722442326755,3.01478,3317.0,3316.7,0.04872878]
[1722442326986,1.04457789,3316.9,3316.5,3.01522]
[1722442327153,1.04457789,3316.9,3316.8,0.04869743]
[1722442327482,0.74176215,3316.9,3316.5,3.01522]
[1722442327683,3.01478,3317.0,3316.8,0.04869743]
[1722442327898,3.01478,3317.0,3316.5,3.853636]
[1722442328190,3.01478,3317.0,3316.9,0.04866608]
[1722442328486,3.01478,3317.0,3316.6,0.04876014]
[1722442328843,3.01478,3317.0,3316.4,3.01531]
[1722442329040,3.01478,3317.0,3316.7,0.0487614]
[1722442329268,3.01478,3317.0,3316.4,3.85375]
[1722442329583,3.01478,3317.0,3316.4,3.85369]
[1722442329757,3.01478,3317.0,3316.4,6.86894]
[1722442329946,3.01478,3317.0,3316.5,0.0488241]
[1722442331439,4.58424828,3317.2,3316.5,0.0488241]
[1722442331639,3.01469,3317.1,3316.5,3.0639941]
[1722442331844,3.01469,3317.1,3316.5,3.99113151]
[1722442332089,3.01464,3317.2,3316.6,3.01507]
[1722442332253,3.01464,3317.2,3316.6,3.01506]
[1722442332461,3.01464,3317.2,3316.7,0.0487614]
[1722442332966,6.5592,3317.3,3316.7,0.0487614]
[1722442333286,6.5592,3317.3,3316.8,3.32132214]
[1722442333691,6.5592,3317.3,3316.9,0.0486987]
[1722442334185,1.57129193,3317.5,3316.9,3.0635287]
[1722442334556,1.57129193,3317.5,3316.9,0.0486987]
[1722442334557,3.0145,3317.3,3316.9,0.0486987]
[1722442334975,3.0145,3317.3,3316.8,0.30638214]
[1722442335177,3.01441,3317.4,3316.8,3.32128214]
[1722442335548,4.58570193,3317.4,3316.9,0.04866608]
[1722442335891,4.58570193,3317.4,3316.8,3.32128214]
[1722442336056,4.58569193,3317.5,3316.8,3.32126214]
[1722442336388,1.57129193,3317.4,3316.9,3.06351608]
[1722442336593,1.5717801,3317.4,3316.9,3.06351608]
[1722442336794,1.5717801,3317.4,3316.9,3.7020099]
[1722442336997,3.01439,3317.5,3316.9,3.7020099]
[1722442336998,1.5717801,3317.5,3316.9,3.7020099]
[1722442337151,1.5717801,3317.6,3316.9,0.63849382]
[1722442337352,1.5717801,3317.6,3317.1,3.01463]
[1722442337353,1.04439685,3317.5,3317.1,3.01463]
[1722442337651,1.04439685,3317.4,3317.2,0.04848608]
[1722442337852,1.04439685,3317.3,3317.1,3.01467]
[1722442338080,1.04439685,3317.2,3317.1,3.01467]
[1722442338396,1.5717801,3317.6,3317.2,3.01453]
[1722442338627,1.04432794,3317.5,3317.3,0.301453]
[1722442338904,1.04432794,3317.4,3317.2,3.01452]
[1722442339116,1.04432794,3317.7,3317.2,3.01452]
[1722442339409,1.04432794,3317.6,3317.2,3.01452]
[1722442339729,3.01397,3317.9,3317.2,3.845754]
[1722442339903,1.57283761,3317.7,3317.2,3.845754]
[1722442340220,1.04435612,3317.6,3317.2,3.845754]
[1722442340366,1.04435612,3317.5,3317.3,3.01449]
[1722442340570,1.04435612,3317.4,3317.2,3.845814]
[1722442340769,1.04435612,3317.3,3317.2,3.845814]
[1722442341631,1.04435612,3317.3,3317.2,0.831234]
[1722442342233,1.04435612,3317.3,3317.2,3.845824]
[1722442342403,0.74155612,3317.3,3317.2,6.860414]
[1722442342886,1.57283761,3317.7,3317.2,6.860414]
[1722442342887,1.57283761,3317.7,3317.3,3.01447]
[1722442343283,1.57283761,3317.7,3317.4,3.01434]
[1722442343488,1.57283761,3317.8,3317.5,3.01431]
[1722442343734,1.57283761,3317.8,3317.4,3.0144]
[1722442343932,1.57283761,3317.9,3317.4,3.0144]
[1722442344233,1.57283761,3317.9,3317.4,3.68589694]
[1722442344386,1.57283761,3317.9,3317.5,3.01431]
[1722442344587,3.01386,3318.0,3317.5,3.01431]
[1722442344872,1.57375321,3317.9,3317.5,3.01431]
[1722442345231,1.57375321,3317.9,3317.6,0.04653771]
[1722442345638,1.57401906,3317.8,3317.6,0.04653771]
[1722442346023,1.57401906,3317.8,3317.5,3.0143]
[1722442346261,1.57401906,3317.8,3317.7,0.04650638]
[1722442346392,1.57401906,3317.8,3317.5,3.617173]
[1722442346592,1.57401906,3317.8,3317.7,0.04650638]
[1722442346904,9.57305,3318.1,3317.6,0.04653771]
[1722442347106,1.57393616,3317.8,3317.7,0.04650638]
[1722442347422,1.57393616,3317.8,3317.5,3.617173]
[1722442347624,1.57393616,3317.8,3317.7,0.04650638]
[1722442347944,1.57393616,3317.8,3317.5,3.617173]
[1722442348097,1.57393616,3317.8,3317.7,0.04650638]
[1722442348299,1.57393616,3317.8,3317.4,3.0144]
[1722442348300,1.57393616,3317.8,3317.6,0.04653771]
[1722442348594,3.01395,3317.9,3317.4,3.0144]
[1722442348595,1.57433069,3317.7,3317.4,3.0144]
[1722442349950,1.57433069,3317.7,3317.4,6.02874]
[1722442350132,1.57433069,3317.7,3317.4,3.617238]
[1722442350454,1.5755379,3317.7,3317.4,3.617238]
[1722442351638,1.5755379,3317.6,3317.4,3.617238]
[1722442351860,1.5755379,3317.6,3317.4,0.602898]
[1722442352137,1.5755379,3317.7,3317.4,3.617258]
[1722442352638,1.5755379,3317.7,3317.4,0.602898]
[1722442352818,1.5755379,3317.6,3317.3,3.01449]
[1722442353221,1.5755379,3317.6,3317.0,6.41284]
[1722442353427,1.5755379,3317.6,3316.4,0.3026]
[1722442353428,4.59018608,3317.5,3316.9,3.01481]
[1722442353678,1.57582608,3317.3,3317.0,3.01476]
[1722442353880,1.57582608,3317.3,3316.7,4.12999]
[1722442353881,1.57582608,3317.3,3317.1,0.301476]
[1722442354358,1.57582608,3317.2,3317.1,0.301476]
[1722442354570,1.57582608,3317.3,3317.1,0.301476]
[1722442354736,1.57582608,3317.2,3317.1,0.301476]
[1722442355442,1.8909913,3317.4,3317.1,0.301476]
[1722442355637,1.57648415,3317.2,3317.1,0.301476]
[1722442355966,1.0444205,3317.2,3317.1,0.301476]
[1722442356125,2.62085655,3317.2,3317.1,0.301476]
[1722442356757,1.89246073,3317.4,3317.1,0.301476]
[1722442356954,1.04438641,3317.3,3317.1,0.301476]
[1722442357339,1.04438641,3317.3,3317.1,3.316086]
[1722442357340,1.57752911,3317.2,3317.1,3.316086]
[1722442357529,2.3190804,3317.2,3317.1,3.316086]
[1722442357728,0.74158641,3317.2,3317.1,3.316086]
[1722442358258,1.89246073,3317.4,3317.1,3.316086]
[1722442358628,1.89246073,3317.3,3317.1,3.316086]
[1722442358829,1.89246073,3317.4,3317.1,3.316086]
[1722442359431,1.89246073,3317.3,3317.1,3.316086]
[1722442359677,1.89246073,3317.2,3317.1,3.316086]
[1722442360026,1.89402517,3317.2,3317.1,3.316086]
[1722442360231,1.8940602,3317.2,3317.1,3.316086]
[1722442361371,2.20973691,3317.4,3317.1,3.316086]
[1722442361580,1.89578986,3317.2,3317.1,3.01461]
[1722442361766,1.89583102,3317.2,3317.1,3.01461]
[1722442361945,2.20973691,3317.5,3317.1,0.1053042]
[1722442362271,2.20973691,3317.6,3317.1,0.04501334]
[1722442362477,1.89602299,3317.3,3317.2,3.01453]
[1722442362695,1.89602299,3317.3,3317.2,3.36699346]
[1722442362970,3.01386,3318.0,3317.2,3.36699346]
[1722442362971,1.89602299,3317.4,3317.3,6.02898]
[1722442363174,3.0137,3318.2,3317.6,3.01422]
[1722442363359,2.21198815,3317.7,3317.6,3.01422]
[1722442363529,0.3077417,3317.7,3317.6,3.01422]
[1722442363730,0.3077417,3317.7,3317.6,3.617081]
[1722442363932,2.51994425,3317.7,3317.6,3.617081]
[1722442364171,3.24634199,3317.7,3317.6,0.602861]
[1722442364329,1.03413944,3317.7,3317.6,3.01422]
[1722442364943,3.24634199,3317.7,3317.5,3.01431]
[1722442365129,3.24634199,3317.6,3317.3,3.01442]
[1722442365326,3.24639461,3317.5,3317.4,3.01438]
[1722442365532,3.24639461,3317.5,3317.4,3.64802015]
[1722442365786,1.03419206,3317.5,3317.4,3.64802015]
[1722442366638,1.03424365,3317.5,3317.4,0.63364015]
[1722442366850,1.03424365,3317.5,3317.2,0.30748146]
[1722442367050,0.63857605,3317.4,3317.2,3.32206146]
[1722442367347,1.04432646,3317.3,3317.2,0.30748146]
[1722442367962,1.68290874,3317.3,3317.2,0.30748146]
[1722442368138,1.99061858,3317.3,3317.2,0.30748146]
[1722442368340,1.3520363,3317.3,3317.2,0.30748146]
[1722442368554,4.20284946,3317.3,3317.2,0.30748146]
[1722442368842,1.99066466,3317.3,3317.2,0.30748146]
[1722442369040,4.20286721,3317.3,3317.2,0.30748146]
[1722442369274,1.99066466,3317.3,3317.2,0.30748146]
[1722442369453,4.20286721,3317.3,3316.8,3.01489]
[1722442369770,2.21448331,3317.1,3316.8,3.01489]
[1722442369962,3.25892732,3317.0,3316.8,3.01489]
[1722442370281,1.04444401,3316.9,3316.8,3.01489]
[1722442370491,3.25892732,3317.0,3316.8,3.01489]
[1722442370637,1.6831927,3316.9,3316.8,3.849349]
[1722442371040,1.04444401,3316.9,3316.8,3.849349]
[1722442371342,1.68321331,3316.9,3316.8,3.849349]
[1722442371558,0.04444401,3316.9,3316.8,3.849349]
[1722442371852,0.6387678,3316.9,3316.8,0.834459]
[1722442372243,1.4621858,3316.9,3316.8,0.834459]
[1722442372460,3.37436911,3316.9,3316.8,0.834459]
[1722442373077,3.03855796,3316.9,3316.6,2.3146]
[1722442373293,0.823418,3316.8,3316.6,5.3146]
[1722442373470,0.823418,3316.7,3316.6,8.32973]
[1722442373645,0.82348251,3316.8,3316.7,3.01504]
[1722442373981,0.82348231,3316.8,3316.7,3.01504]
[1722442374134,0.82348231,3316.8,3316.7,4.149521]
[1722442375733,0.82348231,3316.8,3316.7,4.19321624]
[1722442377190,0.82348231,3316.8,3316.7,5.30821624]
[1722442378245,0.82348231,3316.8,3316.7,1.17817624]
[1722442378598,3.44091305,3316.8,3316.7,0.04369524]
[1722442378805,0.82348231,3316.8,3316.7,0.04369524]
[1722442379111,3.44091305,3316.8,3316.7,0.04380489]
[1722442379313,3.44091305,3316.8,3316.4,3.01529]
[1722442379478,2.21710452,3316.5,3316.4,3.428319]
[1722442379806,0.82348231,3316.5,3316.4,3.428319]
[1722442380102,3.04058683,3316.5,3316.4,3.428319]
[1722442380306,4.47153334,3316.5,3316.4,3.428319]
[1722442381312,4.47153334,3316.5,3316.4,3.01529]
[1722442382682,4.47076668,3316.5,3316.4,3.01529]
[1722442383007,4.47076668,3316.5,3316.2,3.01541]
[1722442383174,2.25442882,3316.4,3316.0,6.01562]
[1722442383379,1.89955966,3316.2,3316.1,6.01559]
[1722442383714,4.15398848,3316.2,3316.1,7.330211]
[1722442383876,4.15398848,3316.2,3316.1,4.314621]
[1722442384087,4.15398848,3316.2,3315.8,3.0158]
[1722442384088,4.47076668,3316.2,3315.8,3.0158]
[1722442384276,3.29913061,3316.1,3316.0,3.01563]
[1722442384482,3.29913061,3316.1,3316.0,6.03131]
[1722442384824,3.29913061,3316.1,3316.0,6.745941]
[1722442385179,5.19750744,3316.1,3316.0,6.745941]
[1722442385378,3.29913061,3316.1,3316.0,6.745941]
[1722442385579,5.19750744,3316.1,3316.0,6.745941]
[1722442385886,3.29910752,3316.1,3316.0,6.745941]
[1722442386084,2.25442882,3316.1,3316.0,6.745941]
[1722442386399,3.29908236,3316.1,3316.0,6.745941]
[1722442386587,5.19696761,3316.1,3316.0,6.745941]
[1722442387163,3.29908236,3316.1,3316.0,6.745941]
[1722442387363,2.17330005,3316.1,3316.0,6.745941]
[1722442389104,1.12864651,3316.1,3316.0,6.745941]
[1722442389307,2.17325102,3316.1,3316.0,6.745941]
[1722442390408,2.17325102,3316.1,3316.0,6.7888777]
[1722442391306,2.17325102,3316.1,3316.0,9.8045577]
[1722442391605,3.7544482,3316.1,3316.0,9.8045577]
[1722442392109,3.7544482,3316.1,3316.0,6.7888777]
[1722442392110,2.17325102,3316.1,3316.0,6.7888777]
[1722442392279,1.12864651,3316.1,3316.0,6.7888777]
[1722442392477,2.17324769,3316.1,3316.0,6.7888777]
[1722442393109,2.17324769,3316.1,3316.0,3.7731977]
[1722442393313,2.17324769,3316.1,3316.0,3.0585667]
[1722442394174,4.07051786,3316.1,3316.0,6.0742467]
[1722442394920,2.17324769,3316.1,3316.0,6.0742467]
[1722442395084,4.07070265,3316.1,3316.0,6.0742467]
[1722442395281,4.07070265,3316.1,3316.0,3.0585667]
[1722442395600,1.12864651,3316.1,3316.0,3.0585667]
[1722442395917,4.07073233,3316.1,3316.0,3.66600437]
[1722442396570,2.17335744,3316.1,3316.0,3.66600437]
[1722442396770,4.07071054,3316.1,3316.0,3.66600437]
[1722442397028,2.17335744,3316.1,3316.0,3.66600437]
[1722442397177,4.07068306,3316.1,3316.0,3.66600437]
[1722442397683,2.17335744,3316.1,3316.0,3.66600437]
[1722442397948,4.07062008,3316.1,3316.0,3.66600437]
[1722442398229,2.17335744,3316.1,3316.0,3.66600437]
[1722442398779,4.07070367,3316.1,3316.0,3.66600437]
[1722442399040,1.12864651,3316.1,3316.0,3.66600437]
[1722442399183,4.07072944,3316.1,3316.0,3.66600437]
[1722442400019,4.07072944,3316.1,3316.0,0.65037437]
[1722442400201,4.07072944,3316.1,3316.0,0.0429367]
[1722442401094,2.17336597,3316.1,3316.0,0.0429367]
[1722442401539,2.17336597,3316.1,3315.8,3.01586]
[1722442401835,2.21353704,3316.2,3315.9,3.05883481]
[1722442402000,1.04474372,3316.1,3315.9,3.05883481]
[1722442402196,3.0153,3316.5,3315.9,3.05883481]
[1722442402402,2.21315897,3316.3,3316.1,3.01559]
[1722442402641,2.21315897,3316.3,3315.9,3.05883481]
[1722442402642,2.21315897,3316.3,3316.2,0.04298072]
[1722442402839,2.86177915,3316.3,3316.0,3.01568]
[1722442403046,2.21315897,3316.3,3316.1,0.04301208]
[1722442403802,2.21315897,3316.4,3316.1,0.04301208]
[1722442404145,2.86174125,3316.3,3316.1,0.04301208]
[1722442404349,2.21315897,3316.3,3316.1,0.04301208]
[1722442405549,2.2127537,3316.4,3316.1,3.05854208]
[1722442405843,2.21275333,3316.2,3316.1,3.05854208]
[1722442405996,2.21275333,3316.3,3316.1,3.05854208]
[1722442406413,2.21275333,3316.4,3316.1,3.05854208]
[1722442406613,2.86139363,3316.3,3316.1,3.05854208]
[1722442406856,2.21275333,3316.4,3316.1,3.05854208]
[1722442407331,1.46253111,3316.3,3316.1,3.05854208]
[1722442407506,1.46253111,3316.3,3316.1,0.04301208]
[1722442407702,3.67528444,3316.3,3316.1,0.04301208]
[1722442407933,1.46253111,3316.2,3316.0,3.01566]
[1722442408608,1.89671371,3316.1,3316.0,3.618797]
[1722442408825,1.46253111,3316.1,3316.0,3.618797]
[1722442409202,1.46253111,3316.2,3316.0,3.618797]
[1722442410656,3.67544064,3316.2,3316.0,3.618797]
[1722442410856,1.46253111,3316.1,3316.0,3.618797]
[1722442411503,2.21290953,3316.3,3316.1,3.01559]
[1722442411852,1.46252827,3316.2,3316.1,3.01559]
[1722442412156,1.46252827,3316.2,3316.1,6.6946197]
[1722442412362,2.21368979,3316.5,3316.2,3.01544]
[1722442412542,4.72078746,3316.4,3316.2,3.01544]
[1722442412847,2.50709767,3316.3,3316.2,3.01544]
[1722442413050,3.1556535,3316.3,3316.2,3.01544]
[1722442413247,5.36934329,3316.3,3316.1,0.6634397]
[1722442413467,2.21368979,3316.3,3316.2,3.01549]
[1722442413751,5.36980347,3316.3,3316.2,3.01549]
[1722442413953,3.15611368,3316.3,3316.2,3.01549]
[1722442414107,3.15611368,3316.3,3316.0,3.01561]
[1722442414450,5.37079734,3316.2,3316.0,3.01561]
[1722442414653,2.50750194,3316.1,3316.0,3.317171]
[1722442415022,2.50750194,3316.1,3316.0,6.332851]
[1722442415425,2.50744335,3316.1,3316.0,6.332851]
[1722442416523,3.15607013,3316.1,3316.0,6.332851]
[1722442417266,2.50744335,3316.1,3316.0,3.317171]
[1722442417465,2.20514335,3316.1,3316.0,3.317171]
[1722442417637,2.85373623,3316.1,3316.0,3.317171]
[1722442417966,5.06905837,3316.1,3316.0,3.317171]
[1722442418167,5.06905837,3316.1,3316.0,0.301561]
[1722442418472,5.06905837,3316.1,3315.9,3.01574]
[1722442418473,5.06905837,3316.1,3315.8,3.01584]
[1722442418676,1.04473679,3316.0,3315.8,3.01584]
[1722442418971,2.21610023,3316.1,3315.9,3.01577]
[1722442419180,1.69339261,3316.0,3315.9,3.01577]
[1722442420358,1.69339261,3316.0,3315.9,3.05751956]
[1722442421364,3.90949284,3316.0,3315.9,3.05751956]
[1722442421860,0.64864657,3316.0,3315.9,3.05751956]
[1722442422061,2.21700494,3316.0,3315.9,3.05751956]
[1722442422271,3.91038781,3316.0,3315.9,3.05751956]
[1722442422519,3.91038781,3316.0,3315.9,0.04174956]
[1722442422652,1.69338287,3316.0,3315.9,0.04174956]
[1722442422841,3.91088843,3316.0,3315.9,3.32153096]
[1722442423046,3.91088843,3316.0,3315.9,3.36328052]
[1722442423380,1.69338287,3316.0,3315.9,0.34751052]
[1722442424444,1.69338287,3316.0,3315.9,0.04174956]
[1722442424684,1.69338287,3316.0,3315.6,3.01598]
[1722442424984,2.21866595,3315.8,3315.6,3.01598]
[1722442425184,3.26351814,3315.7,3315.6,3.01598]
[1722442425346,3.26351814,3315.7,3315.6,6.01598]
[1722442425347,3.91223637,3315.7,3315.6,6.01598]
[1722442425548,3.91223637,3315.7,3315.6,7.25242242]
[1722442426171,3.91230698,3315.7,3315.2,2.4953]
[1722442426370,3.91230698,3315.7,3314.8,3.01674]
[1722442426371,2.21878584,3315.4,3315.0,3.01657]
[1722442426685,1.69352114,3315.6,3314.6,3.01691]
[1722442426686,2.21877542,3315.2,3315.1,3.01648]
[1722442426981,1.69352114,3315.2,3314.8,3.01672]
[1722442427204,9.6438285,3315.1,3314.4,3.01708]
[1722442427484,2.21931455,3314.6,3314.4,3.01708]
[1722442427707,1.69352114,3314.5,3314.4,3.01708]
[1722442427867,1.69352114,3314.5,3314.3,3.01722]
[1722442428067,1.04480291,3314.4,3314.3,3.01722]
[1722442428398,1.04525191,3314.4,3314.3,3.318942]
[1722442429376,2.94301704,3314.4,3314.3,3.318942]
[1722442429777,1.04525191,3314.4,3314.3,3.318942]
[1722442429983,2.94301704,3314.4,3314.3,3.318942]
[1722442430187,2.94301704,3314.4,3314.3,6.336162]
[1722442430497,1.04525191,3314.4,3314.3,6.336162]
[1722442430853,1.5808096,3314.4,3314.3,6.336162]
[1722442431198,1.04519517,3314.4,3314.3,6.336162]
[1722442431499,1.89776513,3314.7,3314.5,3.01704]
[1722442431655,2.3129,3315.1,3314.5,3.01704]
[1722442431656,2.94296544,3314.6,3314.5,3.01704]
[1722442432469,1.04520031,3314.6,3314.5,3.01704]
[1722442432678,1.04520031,3314.6,3314.5,6.6676692]
[1722442432888,1.57969177,3314.6,3314.5,6.6676692]
[1722442433391,1.57969177,3314.7,3314.6,6.0339]
[1722442433552,2.62475664,3314.7,3314.6,10.16585]
[1722442433756,2.62475664,3314.7,3314.6,4.13195]
[1722442433757,1.26343606,3314.7,3314.6,4.13195]